fUST/lending_fUST_20251021
["ID","MTS","AMOUNT","RATE_DAILY","PERIOD"]
[391967614,1761033877755,-967.9,0.00033456,120]
[391967615,1761033877807,-500.0,0.00033456,120]
[391967616,1761033877857,-657.31,0.00033456,120]
[391967617,1761033877904,-500.0,0.00033456,120]
[391967618,1761033877954,-814.57,0.00033456,120]
[391967619,1761033878011,-500.0,0.00033456,120]
[391967620,1761033878071,-500.0,0.00033456,120]
[391967621,1761033878124,-714.47,0.00033456,120]
[391967622,1761033878177,-500.0,0.00033456,120]
[391967623,1761033878231,-500.0,0.00033456,120]
[391967624,1761033878286,-967.9,0.00033456,120]
[391967625,1761033878338,-657.31,0.00033456,120]
[391967626,1761033878387,-500.0,0.00033456,120]
[391967627,1761033878434,-500.0,0.00033456,120]
[391967628,1761033878483,-814.57,0.00033456,120]
[391967629,1761033878529,-500.0,0.00033456,120]
[391967630,1761033878576,-714.47,0.00033456,120]
[391967631,1761033878625,-500.0,0.00033456,120]
[391967632,1761033878673,-500.0,0.00033456,120]
[391967633,1761033878723,-500.0,0.00033456,120]
[391967634,1761033878773,-967.9,0.00033456,120]
[391967635,1761033878828,-500.0,0.00033456,120]
[391967636,1761033878880,-554.93259167,0.00033456,120]
[391967637,1761033878932,-814.57,0.00033456,120]
[391967638,1761033878989,-500.0,0.00033456,120]
[391967639,1761033879045,-714.50423888,0.00033456,120]
[391967640,1761033879107,-657.31,0.00033456,120]
[391967641,1761033879169,-500.0,0.00033456,120]
[391967642,1761033879230,-500.0,0.00033456,120]
[391967643,1761033879290,-967.9,0.00033456,120]
[391967644,1761033879348,-500.0,0.00033456,120]
[391967645,1761033879407,-814.57,0.00033456,120]
[391967646,1761033879464,-500.0,0.00033456,120]
[391967647,1761033879518,-501.60942711,0.00033456,120]
[391967648,1761033879571,-657.31,0.00033456,120]
[391967649,1761033879620,-500.0,0.00033456,120]
[391967650,1761033879670,-500.0,0.00033456,120]
[391967651,1761033879720,-967.9,0.00033456,120]
[391967652,1761033879770,-500.0,0.00033456,120]
[391967653,1761033879818,-500.0,0.00033456,120]
[391967654,1761033879867,-814.57,0.00033456,120]
[391967655,1761033879917,-657.31,0.00033456,120]
[391967656,1761033879971,-500.0,0.00033456,120]
[391967657,1761033880026,-967.9,0.00033456,120]
[391967658,1761033880083,-471.9418336,0.00033456,120]
[391967659,1761033880139,-500.0,0.00033456,120]
[391967660,1761033880197,-500.0,0.00033456,120]
[391967661,1761033880257,-814.57,0.00033456,120]
[391967662,1761033880313,-657.31,0.00033456,120]
[391967663,1761033880372,-500.0,0.00033456,120]
[391967664,1761033880427,-500.0,0.00033456,120]
[391967665,1761033880489,-814.57,0.00033456,120]
[391967666,1761033880541,-500.0,0.00033456,120]
[391967667,1761033880593,-967.9,0.00033456,120]
[391967668,1761033880641,-500.0,0.00033456,120]
[391967669,1761033880688,-657.31,0.00033456,120]
[391967670,1761033880738,-500.0,0.00033456,120]
[391967671,1761033880787,-814.57,0.00033456,120]
[391967672,1761033880834,-500.0,0.00033456,120]
[391967673,1761033880880,-967.9,0.00033456,120]
[391967674,1761033880929,-657.31,0.00033456,120]
[391967675,1761033880980,-500.0,0.00033456,120]
[391967676,1761033881034,-814.57,0.00033456,120]
[391967677,1761033881087,-500.0,0.00033456,120]
[391967678,1761033881138,-500.0,0.00033456,120]
[391967679,1761033881191,-967.9,0.00033456,120]
[391967680,1761033881246,-657.31,0.00033456,120]
[391967681,1761033881300,-500.0,0.00033456,120]
[391967682,1761033881354,-814.57,0.00033456,120]
[391967683,1761033881415,-500.0,0.00033456,120]
[391967684,1761033881466,-500.0,0.00033456,120]
[391967685,1761033881515,-967.9,0.00033456,120]
[391967686,1761033881564,-657.31,0.00033456,120]
[391967687,1761033881612,-814.57,0.00033456,120]
[391967688,1761033881663,-500.0,0.00033456,120]
[391967689,1761033881714,-159.95239725,0.00033456,120]
[391967690,1761033881767,-500.0,0.00033456,120]
[391967691,1761033881819,-967.9,0.00033456,120]
[391967692,1761033881875,-657.31,0.00033456,120]
[391967693,1761033881931,-500.0,0.00033456,120]
[391967694,1761033881986,-814.57,0.00033456,120]
[391967695,1761033882040,-500.0,0.00033456,120]
[391967696,1761033882091,-967.9,0.00033456,120]
[391967697,1761033882143,-657.31,0.00033456,120]
[391967698,1761033882196,-500.0,0.00033456,120]
[391967699,1761033882251,-814.57,0.00033456,120]
[391967700,1761033882305,-500.0,0.00033456,120]
[391967701,1761033882360,-622.03457449,0.00033456,120]
[391967702,1761033883211,417.15472785,0.00024075,2]
[391967703,1761033903379,-150.0,0.00025732,30]
[391967704,1761033903443,-1000.0,0.00027123,30]
[391967705,1761033903506,-150.0,0.00028071,30]
[391967706,1761033903568,-403.4556715,0.00031,120]
[391967707,1761033903632,-444.19257133,0.00031,120]
[391967708,1761033903696,-2141.66502613,0.00031,120]
[391967709,1761033903756,-403.4556715,0.000319,120]
[391967710,1761033903822,-2141.66502613,0.000319,120]
[391967711,1761033903895,-444.19257133,0.000319,120]
[391967712,1761033903971,-200.0,0.0003265,120]
[391967713,1761033904040,-200.0,0.00032745,120]
[391967714,1761033904102,-173.097525,0.0003283,30]
[391967715,1761033904163,-2999.0,0.00032876,120]
[391967716,1761033904222,-403.4556715,0.000329,120]
[391967717,1761033904280,-2141.66502613,0.000329,120]
[391967718,1761033904340,-444.19257133,0.000329,120]
[391967719,1761033904401,-150.22440166,0.000332,117]
[391967720,1761033904462,-150.22440164,0.000332,117]
[391967721,1761033904523,-150.22440164,0.000332,117]
[391967722,1761033904582,-500.0,0.00033287,120]
[391967723,1761033904642,-334.67770878,0.00033287,120]
[391967724,1761033904699,-1950.67,0.000333,30]
[391967725,1761033904831,-159.351176,0.00033456,30]
[391967726,1761033904892,-151.0,0.00033456,30]
[391967727,1761033904954,-151.0,0.00033456,30]
[391967728,1761033905016,-151.0,0.00033456,30]
[391967729,1761033905079,-151.0,0.00033456,30]
[391967730,1761033905142,-151.0,0.00033456,30]
[391967731,1761033905205,-151.0,0.00033456,30]
[391967732,1761033905268,-151.0,0.00033456,30]
[391967733,1761033905330,-225.82073305,0.00033456,30]
[391967734,1761033905392,-2999.0,0.00033561,120]
[391967735,1761033905457,-151.100434,0.00033595,30]
[391967736,1761033905519,-403.4556715,0.000339,120]
[391967737,1761033905579,-2141.66502613,0.000339,120]
[391967738,1761033905638,-444.19257133,0.000339,120]
[391967739,1761033905703,-600.0,0.0003414,30]
[391967740,1761033905766,-200.0,0.00034145,120]
[391967741,1761033905827,-2999.0,0.00034246,120]
[391967742,1761033905885,-403.4556715,0.000349,120]
[391967743,1761033905944,-2141.66502613,0.000349,120]
[391967744,1761033906002,-444.19257133,0.000349,120]
[391967745,1761033906066,-2999.0,0.00034931,120]
[391967746,1761033906132,-300.0,0.00035,90]
[391967747,1761033906189,-1780.44,0.00035,120]
[391967748,1761033906251,-200.0,0.00035193,120]
[391967749,1761033906534,-150.22440164,0.00035344,120]
[391967750,1761033906603,-152.37,0.00035497,60]
[391967751,1761033906659,-500.0,0.000355,120]
[391967752,1761033906719,-152.37,0.00035597,60]
[391967753,1761033906778,-2999.0,0.00035616,120]
[391967754,1761033906835,-746.35871011,0.00035659,120]
[391967755,1761033906895,-152.37,0.00035697,60]
[391967756,1761033906955,-152.37,0.00035797,60]
[391967757,1761033907016,-152.37,0.00035897,60]
[391967758,1761033907078,-2141.66502613,0.000359,120]
[391967759,1761033907137,-250.0,0.00035917,30]
[391967760,1761033907195,-478.75725327,0.00035917,30]
[391967761,1761033907252,-500.0,0.00036,120]
[391967762,1761033907311,-152.37,0.00036097,60]
[391967763,1761033907373,-152.37,0.00036197,60]
[391967764,1761033907432,-152.37,0.00036297,60]
[391967765,1761033907490,-2999.0,0.00036301,120]
[391967766,1761033907548,-152.46366312,0.00036397,60]
[391967767,1761033907602,-500.0,0.000365,120]
[391967768,1761033907657,-250.0,0.00036555,54]
[391967769,1761033907716,-461.67526834,0.00036555,54]
[391967770,1761033907774,-2000.0,0.000369,120]
[391967771,1761033907831,-2999.0,0.00036986,120]
[391967772,1761033907886,-9451.0,0.00037,120]
[391967773,1761033907939,-358.70347171,0.00037,120]
[391967774,1761033907993,-2141.66502613,0.00037,120]
[391967775,1761033908046,-310.22387796,0.0003715,30]
[391967776,1761033908101,-250.0,0.0003715,30]
[391967777,1761033908158,-445.202766,0.0003715,30]
[391967780,1761033908216,-200.0,0.00037216,120]
[391967781,1761033908274,-200.0,0.00037216,120]
[391967782,1761033908332,-200.0,0.000373,120]
[391967783,1761033908391,-250.0,0.00037341,30]
[391967784,1761033908451,-250.0,0.00037341,30]
[391967785,1761033908510,-429.318,0.00037341,30]
[391967786,1761033908568,-528.13691268,0.00037424,30]
[391967787,1761033908627,-250.0,0.00037424,30]
[391967788,1761033908684,-250.0,0.00037424,30]
[391967789,1761033908742,-414.0,0.00037424,30]
[391967790,1761033908799,-2000.0,0.000375,120]
[391967791,1761033908858,-150.0,0.000375,112]
[391967792,1761033908922,-720.0,0.00037554,30]
[391967793,1761033908981,-50000.0,0.000376,120]
[391967794,1761033909042,-2999.0,0.00037671,120]
[391967795,1761033909104,-4992.4,0.0003768,120]
[391967796,1761033909167,-163.2381289,0.00037704,30]
[391967797,1761033909231,-607.441406,0.00037704,30]
[391967798,1761033909291,-597.1034326,0.00037704,30]
[391967799,1761033909351,-589.8769586,0.00037704,30]
[391967800,1761033909413,-2000.0,0.000379,120]
[391967801,1761033909470,-20552.02831087,0.00038,120]
[391967802,1761033909527,-6500.0,0.00038,38]
[391967803,1761033909584,-199.0,0.0003809,48]
[391967804,1761033909638,-2141.66502613,0.000381,120]
[391967805,1761033909689,-99675.05370944,0.000382,120]
[391967806,1761033909742,-1600.0,0.00038301,30]
[391967807,1761033909799,-2999.0,0.00038356,120]
[391967808,1761033909853,-2000.0,0.000385,120]
[391967809,1761033909905,-200.0,0.00038521,120]
[391967810,1761033909957,-759.29876707,0.00038719,64]
[391967811,1761033910013,-357.36219248,0.0003882,60]
[391967812,1761033910070,-1700.0,0.000389,120]
[391967813,1761033910127,-1200.0,0.000389,120]
[391967814,1761033910187,-2000.0,0.000389,120]
[391967815,1761033910246,-159.29,0.000389,120]
[391967816,1761033910302,-5032.39212453,0.00039,30]
[391967817,1761033910354,-150.06967317,0.00039,120]
[391967818,1761033910407,-1845.7746,0.00039,120]
[391967819,1761033910460,-1455015.64446078,0.00039,120]
[391967820,1761033910513,-7000.0,0.00039,120]
[391967821,1761033910564,-1132.1786,0.00039035,67]
[391967822,1761033910648,-2999.0,0.00039041,120]
[391967823,1761033910698,-7585.8948135,0.00039058,68]
[391967824,1761033910748,-6578.51258552,0.00039078,65]
[391967825,1761033910800,-5000.0,0.00039078,69]
[391967826,1761033910853,-5000.0,0.00039078,71]
[391967827,1761033910903,-5000.0,0.00039078,67]
[391967828,1761033910955,-5000.0,0.00039078,67]
[391967829,1761033911009,-1813.86876464,0.00039087,68]
[391967830,1761033911065,-10929.96313313,0.000392,120]
[391967831,1761033911123,-200.0,0.000393,120]
[391967832,1761033911184,-2141.66502613,0.000393,120]
[391967833,1761033911242,-2000.0,0.000395,120]
[391967834,1761033911299,-1664.13,0.000396,120]
[391967835,1761033911357,-2999.0,0.00039726,120]
[391967836,1761033911415,-193049.39678285,0.000398,120]
[391967837,1761033915404,-517.78013064,0.00037341,30]
[391967838,1761033915464,-414.0,0.00037424,30]
[391967839,1761033915526,-623748.65993788,0.000398,120]
[391967840,1761033915581,-879.72619145,0.00039871,120]
[391967841,1761033915635,-1635.11559659,0.0003989,120]
[391967842,1761033915688,-10565.61957477,0.00039898,120]
[391967843,1761033915743,-1888.0,0.00039998,30]
[391967844,1761033915799,-527.09343989,0.00039998,31]
[391967845,1761033915855,-443.87579455,0.00039999,31]
[391967846,1761033915911,-469.60310485,0.00039999,31]
[391967847,1761033915971,-398.35879635,0.00039999,31]
[391967848,1761033916033,-72860.04254017,0.0004,120]
[391967849,1761033916088,-497.0,0.0004,30]
[391967850,1761033916145,-1013.0,0.0004,120]
[391967851,1761033916200,-307708.06142801,0.0004,120]
[391967852,1761033916254,-3998.28247578,0.0004,120]
[391967853,1761033916310,-1000.0,0.0004,120]
[391967854,1761033916365,-1000.0,0.0004,120]
[391967855,1761033916425,-151.47460262,0.0004,30]
[391967856,1761033916483,-154.11120528,0.0004,120]
[391967857,1761033916539,-20000.0,0.0004,120]
[391967858,1761033916593,-432686.3207937,0.0004,120]
[391967859,1761033916648,-8435.91496961,0.0004,60]
[391967860,1761033916704,-398.0,0.0004,120]
[391967861,1761033916760,-500.0,0.0004,120]
[391967862,1761033916814,-200.0,0.0004,120]
[391967863,1761033916867,-48297.17150347,0.0004,120]
[391967864,1761033916923,-426.0,0.0004,30]
[391967865,1761033916981,-85801.37842446,0.0004,120]
[391967866,1761033917039,-2000.0,0.0004,120]
[391967867,1761033917098,-100196.32127375,0.0004,120]
[391967868,1761033917158,-102948.26335795,0.0004,120]
[391967869,1761033917218,-32691.0,0.0004,120]
[391967870,1761033917278,-373.61661579,0.0004,120]
[391967871,1761033917337,-358.70347171,0.0004,120]
[391967872,1761033917398,-166.39,0.00040012,120]
[391967873,1761033917460,-166.39,0.00040112,120]
[391967874,1761033917518,-589.8769586,0.00040147,30]
[391967875,1761033917576,-589.8769586,0.00040147,30]
[391967876,1761033917632,-589.8769586,0.00040147,30]
[391967877,1761033917689,-500.0,0.000402,120]
[391967878,1761033917747,-166.39,0.00040212,120]
[391967879,1761033917804,-166.39,0.00040312,120]
[391967880,1761033917861,-2141.66502613,0.000404,120]
[391967881,1761033917919,-2999.0,0.0004041,120]
[391967882,1761033917979,-166.39,0.00040412,120]
[391967883,1761033918041,-2000.0,0.000405,120]
[391967884,1761033918103,-166.39,0.00040512,120]
[391967885,1761033918164,-166.39,0.00040612,120]
[391967886,1761033918222,-199.0,0.0004068,55]
[391967887,1761033918284,-166.39,0.00040712,120]
[391967888,1761033918343,-166.39,0.00040812,120]
[391967889,1761033918399,-91000.0,0.000409,60]
[391967890,1761033918457,-2000.0,0.000409,120]
[391967891,1761033918515,-166.39,0.00040912,120]
[391967892,1761033918568,-1000.0,0.00041,120]
[391967893,1761033918627,-500.0,0.00041,120]
[391967894,1761033918681,-4003.48635677,0.00041,120]
[391967895,1761033918732,-202.7196,0.00041,120]
[391967896,1761033918788,-894.0,0.00041,120]
[391967897,1761033918844,-166.39,0.00041012,120]
[391967898,1761033918898,-166.4,0.00041041,120]
[391967899,1761033918953,-166.4,0.00041041,120]
[391967900,1761033919010,-166.4,0.00041041,120]
[391967901,1761033919071,-166.4,0.00041041,120]
[391967902,1761033919134,-2999.0,0.00041095,120]
[391967903,1761033919194,-20113.11291203,0.00041096,120]
[391967904,1761033922786,-29886.88708797,0.00041096,120]
[391967905,1761033922847,-80052.0,0.0004111,120]
[391967906,1761033922910,-166.39,0.00041112,120]
[391967907,1761033922970,-500.0,0.000412,120]
[391967908,1761033923034,-167.33126201,0.00041212,120]
[391967909,1761033923101,-200.0,0.000413,120]
[391967910,1761033923167,-864.0,0.00041309,90]
[391967911,1761033923228,-2361.12931713,0.0004144,120]
[391967912,1761033923291,-500.0,0.000415,120]
[391967913,1761033923352,-2000.0,0.000415,120]
[391967914,1761033923412,-782.88887017,0.00041674,120]
[391967915,1761033923476,-2999.0,0.0004178,120]
[391967916,1761033923540,-2000.0,0.000419,120]
[391967917,1761033923603,-200.0,0.00042,120]
[391967918,1761033923668,-300.0,0.00042,120]
[391967919,1761033923726,-1000.0,0.00042,120]
[391967920,1761033923784,-500.0,0.00042,120]
[391967921,1761033923841,-155.01813241,0.00042,120]
[391967922,1761033923897,-40387.0,0.00042,120]
[391967923,1761033923956,-14028.5,0.00042,60]
[391967924,1761033924016,-7400.0,0.00042,120]
[391967925,1761033924077,-245.87022091,0.00042143,120]
[391967926,1761033924139,-500.0,0.000422,120]
[391967927,1761033924200,-668.98799,0.000424,120]
[391967928,1761033924261,-312.65866,0.000424,120]
[391967929,1761033924325,-2999.0,0.00042465,120]
[391967930,1761033924387,-500.0,0.000425,120]
[391967931,1761033924450,-2000.0,0.000425,120]
[391967932,1761033924513,-285.62426882,0.00043,120]
[391967933,1761033924575,-1000.0,0.00043,120]
[391967934,1761033924636,-500.0,0.00043,120]
[391967935,1761033924696,-20000.28512424,0.00043,30]
[391967936,1761033924757,-4103.0,0.00043,120]
[391967937,1761033924817,-1321.23401656,0.00043,120]
[391967938,1761033924877,-2999.0,0.0004315,120]
[391967939,1761033924936,-500.0,0.000432,120]
[391967940,1761033924995,-199.0,0.0004327,62]
[391967941,1761033925054,-238.74629,0.000433,120]
[391967942,1761033925113,-716749.5426,0.00043444,30]
[391967943,1761033925174,-1058426.90615978,0.00043444,30]
[391967944,1761033927904,-2000000.0,0.00043444,30]
[391967945,1761033932970,-600.0,0.00026795,30]
[391967946,1761033933113,-200.0,0.00039227,120]
[391967947,1761033933180,-700.0,0.00042288,60]
[391967948,1761033933245,-700.0,0.00043384,60]
[391967949,1761033933309,-144594.22454022,0.00043444,30]
[391967950,1761033933368,-500.0,0.000435,120]
[391967951,1761033933430,-2000.0,0.000435,120]
[391967952,1761033933491,-1112.22451626,0.00043835,120]
[391967953,1761033933567,720.0,0.00029474,30]
[391967954,1761033933903,864.0,0.00032422,30]
[391967955,1761033934489,1000.0,0.00035664,30]
[391967956,1761033935498,1000.0,0.0003923,90]
[391967957,1761033935913,244.0,0.0003923,90]
[391967958,1761033936408,1000.0,0.00043153,90]
[391967959,1761033936902,492.0,0.00043153,90]
[391967960,1761033960366,-101839.88599793,0.00043877,60]
[391967961,1761033960434,-2000.0,0.000439,120]
[391967962,1761033960495,-874.25414843,0.000439,120]
[391967963,1761033960555,-200.0,0.00044,120]
[391967964,1761033960617,-1000.0,0.00044,120]
[391967965,1761033960678,-500.0,0.00044,120]
[391967966,1761033960737,-668.98806,0.000441,120]
[391967967,1761033960799,-312.65866,0.000441,120]
[391967968,1761033960861,-500.0,0.000442,120]
[391967969,1761033960919,-700.0,0.0004448,60]
[391967970,1761033960981,-500.0,0.000445,120]
[391967971,1761033961042,-2000.0,0.000445,120]
[391967972,1761033961105,-500.0,0.000447,120]
[391967973,1761033961167,-22986.3283,0.000447,72]
[391967974,1761033961226,-27413.3919791,0.00044999,120]
[391967975,1761033961286,-34950.0,0.00045,120]
[391967976,1761033961345,-1000.0,0.00045,120]
[391967977,1761033961403,-500.0,0.00045,120]
[391967978,1761033961462,-3998.28247578,0.00045,120]
[391967979,1761033961520,-8000.0,0.00045,120]
[391967980,1761033961578,-2023.11849324,0.00045,120]
[391967981,1761033961638,-570.49582838,0.00045,120]
[391967982,1761033961696,-500.0,0.000452,120]
[391967983,1761033961754,-150.93,0.00045205,120]
[391967984,1761033961815,-1440999.71788832,0.00045376,120]
[391967985,1761033961877,-736.99308102,0.000454,120]
[391967986,1761033961936,-500.0,0.000455,120]
[391967987,1761033961999,-2000.0,0.000455,120]
[391967988,1761033962064,-700.0,0.00045576,60]
[391967989,1761033962124,-500.0,0.000457,120]
[391967990,1761033962184,-199.0,0.0004586,69]
[391967991,1761033962245,-2000.0,0.000459,120]
[391967992,1761033962306,-54811.57534644,0.00046,90]
[391967993,1761033962366,-200.0,0.00046,120]
[391967994,1761033962423,-1000.0,0.00046,120]
[391967995,1761033962480,-500.0,0.00046,120]
[391967996,1761033962538,-5778.45595784,0.00046,120]
[391967997,1761033962596,-500.0,0.000462,120]
[391967998,1761033962653,-500.0,0.000465,120]
[391967999,1761033962711,-2000.0,0.000465,120]
[391968000,1761033962768,-200.0,0.0004652,120]
[391968001,1761033962825,-200.0,0.0004652,120]
[391968002,1761033962881,-200.0,0.0004652,120]
[391968003,1761033962936,-200.0,0.0004652,120]
[391968004,1761033962995,-200.0,0.0004652,120]
[391968005,1761033963056,-218.94003207,0.0004652,120]
[391968006,1761033963117,-30000.0,0.000466,120]
[391968007,1761033963180,-700.0,0.00046672,60]
[391968008,1761033963242,-30000.0,0.000468,120]
[391968009,1761033963303,-1000.0,0.00047,120]
[391968010,1761033963363,-500.0,0.00047,120]
[391968011,1761033963421,-5000.0,0.00047,120]
[391968012,1761033963484,-500.0,0.000472,120]
[391968013,1761033963546,-1000.0,0.00047443,120]
[391968014,1761033963611,-1000.0,0.00047468,90]
[391968015,1761033963672,-791.0,0.00047468,90]
[391968016,1761033963731,-500.0,0.000475,120]
[391968017,1761033963788,-150.27,0.000475,60]
[391968018,1761033964017,-2000.0,0.000475,120]
[391968019,1761033964082,-30000.0,0.000476,120]
[391968020,1761033964148,-700.0,0.00047768,60]
[391968021,1761033964212,-30000.0,0.000478,120]
[391968022,1761033964273,-2000.0,0.000479,120]
[391968023,1761033964333,-1000.0,0.00047999,120]
[391968024,1761033964395,-200.0,0.00048,120]
[391968025,1761033964454,-1000.0,0.00048,120]
[391968026,1761033964518,-500.0,0.00048,120]
[391968027,1761033964578,-7782.2,0.00048,120]
[391968028,1761033964636,-500.0,0.000482,120]
[391968029,1761033964693,-259.78100236,0.000482,120]
[391968030,1761033964750,-2363.44950973,0.00048398,120]
[391968031,1761033964807,-500.0,0.000485,120]
[391968032,1761033964865,-2000.0,0.000485,120]
[391968033,1761033964923,-30000.0,0.000486,120]
[391968034,1761033964981,-30000.0,0.000486,120]
[391968035,1761033965055,-4992.4,0.000487,120]
[391968036,1761033965128,-30000.0,0.000488,120]
[391968037,1761033965194,-30000.0,0.000488,120]
[391968038,1761033965258,-25691.8467418,0.000488,120]
[391968039,1761033965320,-700.0,0.00048864,60]
[391968040,1761033965389,-1000.0,0.00049,120]
[391968041,1761033965458,-32428.53260773,0.00049,120]
[391968042,1761033965519,-1248.54732153,0.00049,60]
[391968043,1761033965578,-2771.27497139,0.00049,120]
[391968044,1761033965637,-3500.0,0.00049,60]
[391968045,1761033965698,-500.0,0.000492,120]
[391968046,1761033965761,-85072.0,0.000493,120]
[391968048,1761033993055,-345.86542551,0.00033456,120]
[391968049,1761033993117,-657.31,0.00033456,120]
[391968050,1761033993181,-500.0,0.00033456,120]
[391968051,1761033993243,-814.57,0.00033456,120]
[391968052,1761033993304,-500.0,0.00033456,120]
[391968053,1761033993364,-967.9,0.00033456,120]
[391968054,1761033993424,-657.31,0.00033456,120]
[391968055,1761033993486,-500.0,0.00033456,120]
[391968056,1761033993552,-814.57,0.00033456,120]
[391968057,1761033993611,-500.0,0.00033456,120]
[391968058,1761033993669,-967.9,0.00033456,120]
[391968059,1761033993727,-657.31,0.00033456,120]
[391968060,1761033993785,-500.0,0.00033456,120]
[391968061,1761033993843,-814.57,0.00033456,120]
[391968062,1761033993903,-500.0,0.00033456,120]
[391968063,1761033993961,-967.9,0.00033456,120]
[391968064,1761033994022,-657.31,0.00033456,120]
[391968065,1761033994086,-500.0,0.00033456,120]
[391968066,1761033994148,-814.57,0.00033456,120]
[391968067,1761033994211,-369.56406579,0.00033456,120]
[391968068,1761033994279,-967.9,0.00033456,120]
[391968069,1761033994349,-657.31,0.00033456,120]
[391968070,1761033994411,-814.58392949,0.00033456,120]
[391968071,1761033994474,-179.48897396,0.00033456,120]
[391968072,1761033994534,-967.9,0.00033456,120]
[391968073,1761033994595,-657.53,0.00033456,120]
[391968074,1761033994656,-967.9,0.00033456,120]
[391968075,1761033994717,-967.9,0.00033456,120]
[391968076,1761033994777,-967.9,0.00033456,120]
[391968077,1761033994838,-967.9,0.00033456,120]
[391968078,1761033994902,-967.95412734,0.00033456,120]
[391968079,1761033994963,-500.0,0.00033456,120]
[391968080,1761033995026,-560.07906671,0.00033456,120]
[391968081,1761033995089,-500.0,0.00033456,120]
[391968082,1761033995151,-500.0,0.00033456,120]
[391968083,1761033995214,-500.0,0.00033456,120]
[391968084,1761033995275,-1192.38,0.00033456,120]
[391968085,1761033995337,-500.0,0.00033456,120]
[391968086,1761033995401,-337.07624939,0.00033456,120]
[391968087,1761033995456,-1192.38,0.00033456,120]
[391968088,1761033995511,-1192.38,0.00033456,120]
[391968089,1761033995565,-1192.38,0.00033456,120]
[391968090,1761033995616,-1192.38,0.00033456,120]
[391968091,1761033995673,-1192.38,0.00033456,120]
[391968092,1761033995730,-1192.38,0.00033456,120]
[391968093,1761033995911,-1192.38,0.00033456,120]
[391968094,1761033996005,-1192.38,0.00033456,120]
[391968095,1761033996066,-1192.38,0.00033456,120]
[391968096,1761033996137,-1192.38,0.00033456,120]
[391968097,1761033996197,-1192.38,0.00033456,120]
[391968098,1761033996256,-1192.38,0.00033456,120]
[391968099,1761033996314,-1192.38,0.00033456,120]
[391968100,1761033996374,-1192.38,0.00033456,120]
[391968101,1761033996429,-1192.38,0.00033456,120]
[391968102,1761033996487,-1192.38,0.00033456,120]
[391968103,1761033996542,-1192.38,0.00033456,120]
[391968104,1761033996602,-2702.5,0.00033456,120]
[391968105,1761033996659,-1701.35,0.00033456,120]
[391968106,1761033996718,-2702.5,0.00033456,120]
[391968107,1761033996775,-1701.35,0.00033456,120]
[391968108,1761033996834,-1192.38,0.00033456,120]
[391968109,1761033996892,-2702.5,0.00033456,120]
[391968110,1761033996954,-1701.35,0.00033456,120]
[391968111,1761033997014,-1192.38,0.00033456,120]
[391968112,1761033997072,-2702.5,0.00033456,120]
[391968113,1761033997131,-1701.35,0.00033456,120]
[391968114,1761033997188,-1192.38,0.00033456,120]
[391968115,1761033997246,-2702.5,0.00033456,120]
[391968116,1761033997303,-1192.38,0.00033456,120]